fUST/lending_fUST_20250928
["ID","MTS","AMOUNT","RATE_DAILY","PERIOD"]
[388080858,1759008649859,-903.0,0.00035616,9]
[388080859,1759008649869,-792.04,0.00035616,9]
[388080860,1759008649879,-480.0,0.00035616,9]
[388080861,1759008649888,-480.0,0.00035616,9]
[388080862,1759008649898,-480.0,0.00035616,9]
[388080863,1759008649909,-480.35546986,0.00035616,9]
[388080864,1759008649918,-482.39,0.00035616,9]
[388080865,1759008649928,-480.0,0.00035616,9]
[388080866,1759008649939,-480.0,0.00035616,9]
[388080867,1759008649948,-728.08,0.00035616,9]
[388080868,1759008649957,-480.0,0.00035616,9]
[388080869,1759008649969,-480.0,0.00035616,9]
[388080870,1759008649980,-480.0,0.00035616,9]
[388080871,1759008649990,-480.0,0.00035616,9]
[388080872,1759008650000,-480.0,0.00035616,9]
[388080873,1759008650009,-480.0,0.00035616,9]
[388080874,1759008650019,-1357.17,0.00035616,9]
[388080875,1759008650029,-1247.21,0.00035616,9]
[388080876,1759008650039,-480.0,0.00035616,9]
[388080877,1759008650049,-480.0,0.00035616,9]
[388080878,1759008650059,-480.0,0.00035616,9]
[388080879,1759008650068,-480.0,0.00035616,9]
[388080880,1759008650081,-480.0,0.00035616,9]
[388080881,1759008650092,-480.0,0.00035616,9]
[388080882,1759008650101,-480.0,0.00035616,9]
[388080883,1759008650111,-480.0,0.00035616,9]
[388080884,1759008650121,-480.0,0.00035616,9]
[388080885,1759008650131,-480.0,0.00035616,9]
[388080886,1759008650139,-629.14762244,0.00035616,9]
[388080887,1759008650149,-487.9785182,0.00035616,9]
[388080888,1759008650158,-216.40518248,0.00035616,9]
[388080889,1759008653191,396.01643875,0.00028974,30]
[388080890,1759008653757,150.0,0.00028974,30]
[388080904,1759009544965,189.3309625,0.00027028,2]
[388080905,1759009599137,-183.37381011,0.00028,10]
[388080911,1759009766144,-159.2550529,0.000279,2]
[388080912,1759009766165,-5.95715239,0.00028,10]
[388080913,1759009766186,-189.3309625,0.00028,10]
[388080914,1759009766207,-189.3309625,0.00028,10]
[388080915,1759009766227,-200.0,0.00030559,15]
[388080946,1759009833077,-603.97026605,0.00031408,2]
[388080947,1759009833087,-213.84892698,0.00031507,2]
[388080949,1759009833096,-400.0,0.00031507,3]
[388080950,1759009833106,-300.0,0.00031507,3]
[388080951,1759009833122,-400.0,0.00031507,2]
[388080952,1759009833136,-300.0,0.00031507,3]
[388080953,1759009833147,-400.0,0.00031507,3]
[388080954,1759009833157,-1600.0,0.00031507,3]
[388080955,1759009833166,-9652.55134499,0.00031508,2]
[388080956,1759009833187,-40347.44865501,0.00031508,2]
[388080957,1759009833197,-950.0,0.00031509,3]
[388080958,1759009833206,-12682.513152,0.00031512,2]
[388080959,1759009833215,-189.2787965,0.00031571,2]
[388080960,1759009833225,-500.0,0.000316,5]
[388080961,1759009833235,-109.71389847,0.000316,5]
[388080962,1759009833247,-390.28610153,0.000316,5]
[388080963,1759009833256,-196.438212,0.00031738,60]
[388080964,1759009833266,-500.0,0.00032148,5]
[388080965,1759009833275,-445.3827707,0.00032452,2]
[388080977,1759009838705,-1130.8348381,0.00032452,2]
[388080979,1759009838714,-603.97026601,0.00032543,2]
[388080980,1759009838723,-160.443,0.00032855,33]
[388080983,1759009838734,-233.76631357,0.00032857,2]
[388080985,1759009838743,-160.0,0.00032857,2]
[388080987,1759009838756,-189.3309625,0.00032858,2]
[388080989,1759009838765,-160.0,0.00032858,2]
[388080992,1759009838775,-414.653153,0.00032877,2]
[388080994,1759009838784,-666.0,0.00033071,2]
[388080996,1759009838794,-323.70613425,0.00033386,14]
[388080998,1759009838803,-603.97026601,0.00033678,2]
[388080999,1759009838812,-200.0,0.00033905,3]
[388081001,1759009838827,-560.0,0.00033905,2]
[388081003,1759009838837,-2240.0,0.00034046,3]
[388081005,1759009838846,-250.0,0.00034084,2]
[388081008,1759009838856,-165.305456,0.00034294,60]
[388081010,1759009838867,-511.99329669,0.00034647,2]
[388081011,1759009838877,-603.97026601,0.00034813,2]
[388081013,1759009838886,-392.40186602,0.00034813,2]
[388081015,1759009838895,-151.0,0.00034819,30]
[388081017,1759009838906,-266.614156,0.0003499,2]
[388081019,1759009838915,-659.22923129,0.0003499,2]
[388081021,1759009838925,-1170.79111477,0.0003499,2]
[388081023,1759009838934,-909.30009493,0.00035072,2]
[388081025,1759009838944,-500.0,0.00035088,2]
[388081027,1759009838953,-390.611828,0.00035108,30]
[388081029,1759009838963,-856.42924481,0.00035258,2]
[388081032,1759009838973,-1468.7639961,0.00035425,2]
[388081034,1759009838983,-2161.0,0.00035433,2]
[388081035,1759009838992,-635.0,0.00035433,2]
[388081037,1759009839001,-410.0,0.00035433,2]
[388081040,1759009839011,-151.0,0.00035489,30]
[388081041,1759009839021,-866.58,0.00035496,3]
[388081044,1759009839031,-151.0,0.000355,17]
[388081046,1759009839040,-151.0,0.000355,20]
[388081048,1759009839050,-151.0,0.000355,16]
[388081050,1759009839060,-151.0,0.000355,11]
[388081051,1759009839069,-46273.70232513,0.00035506,3]
[388081054,1759009839081,-5252.05896771,0.00035506,3]
[388081056,1759009839093,-5448.51305132,0.00035506,3]
[388081187,1759009840639,-17000.69977884,0.00035506,3]
[388081189,1759009840649,-189.3309625,0.00035506,3]
[388081191,1759009840658,-16027.94001922,0.00035516,2]
[388081194,1759009840683,-493.64746722,0.00035516,2]
[388081515,1759009843882,-494.3173247,0.00031507,2]
[388081521,1759009843942,-5.6826753,0.00031507,2]
[388081523,1759009843951,-14.69219249,0.00031507,2]
[388081791,1759009846607,-328.24925353,0.00031507,2]
[388081793,1759009846616,-339.1113873,0.00031507,2]
[388081799,1759009846667,-160.8886127,0.00031507,2]
[388081801,1759009846677,-324.02624637,0.00031507,2]
[388081803,1759009846686,-500.0,0.00031507,2]
[388081805,1759009846698,-203.60643963,0.00031507,2]
[388081807,1759009846712,-296.39356037,0.00031507,2]
[388081809,1759009846722,-500.0,0.00031507,2]
[388081811,1759009846732,-500.0,0.00031507,2]
[388081813,1759009846741,-105.19212204,0.00031507,2]
[388081818,1759009846781,-98.44329307,0.00031507,2]
[388081820,1759009846790,-500.0,0.00031507,2]
[388081822,1759009846799,-535.01374871,0.00031507,2]
[388081824,1759009846808,-500.0,0.00031507,2]
[388081826,1759009846817,-2937.80379443,0.00035425,2]
[388081828,1759009846827,-5984.00171875,0.00035516,2]
[388084812,1759009901954,165.305456,0.00030048,20]
[388084814,1759010164590,-269.89136979,0.000253,2]
[388084815,1759010231422,417.15472785,0.00025205,2]
[388084816,1759010231867,417.15472785,0.00025205,14]
[388084823,1759010453743,40000.0,0.00033496,60]
[388084831,1759010645304,743.0,0.00025205,2]
[388084833,1759010835094,-156.0,0.00031173,7]
[388084834,1759010835113,-59.46929905,0.00032,120]
[388084835,1759010898287,151.0,0.00033496,60]
[388084856,1759011037876,-117.71064201,0.00032,120]
[388084857,1759011037887,-177.17994106,0.000323,120]
[388084858,1759011037897,-177.17994106,0.000326,120]
[388084859,1759011037907,-393.920495,0.00032877,2]
[388084860,1759011037917,-265.0,0.00032934,2]
[388084861,1759011037927,-2.90663481,0.00033274,60]
[388084862,1759011037940,-198.39347319,0.00033274,60]
[388084863,1759011037950,-265.0,0.00033402,2]
[388084864,1759011037960,-150.0,0.00033496,10]
[388084865,1759011037970,-50.46960382,0.00033549,2]
[388084866,1759011037983,-214.53039618,0.00033549,2]
[388084867,1759011037993,-265.0,0.00033597,7]
[388084868,1759011038003,-265.0,0.00033656,120]
[388084869,1759011038013,-265.0,0.00033743,2]
[388084870,1759011038023,-265.0,0.0003383,2]
[388084871,1759011038034,-168.0,0.00033833,2]
[388084872,1759011038044,-265.0,0.00033923,2]
[388084873,1759011038054,-265.0,0.00034028,7]
[388084874,1759011038064,-952.0,0.00034028,120]
[388084875,1759011038075,-265.0,0.00034335,2]
[388084876,1759011038085,-390.611828,0.00034341,30]
[388084877,1759011038095,-648.58991857,0.00034382,7]
[388084878,1759011038105,-170.55708319,0.00034382,7]
[388084879,1759011038115,-500.0,0.00034382,7]
[388084881,1759011038125,-500.0,0.00034382,7]
[388084883,1759011038136,-500.0,0.00034382,7]
[388084885,1759011038146,-215.35653794,0.00034382,7]
[388084886,1759011038157,-500.0,0.00034382,7]
[388084887,1759011038168,-500.0,0.00034382,7]
[388084888,1759011038178,-500.0,0.00034382,7]
[388084889,1759011038189,-500.0,0.00034382,7]
[388084890,1759011038198,-443.15879094,0.00034382,7]
[388084891,1759011038208,-500.0,0.00034382,7]
[388084892,1759011038218,-500.0,0.00034382,7]
[388084893,1759011038228,-294.58711359,0.00034382,7]
[388084894,1759011038238,-500.0,0.00034382,7]
[388084895,1759011038249,-500.0,0.00034382,7]
[388084896,1759011038259,-500.0,0.00034382,7]
[388084897,1759011038272,-952.0,0.00034383,2]
[388084898,1759011038283,-265.0,0.0003441,7]
[388084899,1759011038293,-1600.0,0.00034428,3]
[388084900,1759011038303,-952.0,0.00034429,2]
[388084901,1759011038315,-410.0,0.00034665,2]
[388084903,1759011038324,-300.0,0.00034711,3]
[388084904,1759011038334,-300.0,0.00034711,3]
[388084906,1759011038344,-341.0,0.00034711,3]
[388084908,1759011038355,-400.0,0.00034711,2]
[388084909,1759011038365,-300.0,0.00034711,3]
[388084910,1759011038375,-325.22,0.00034713,2]
[388084911,1759011038385,-1128.0,0.00034713,3]
[388084912,1759011038395,-294.30139951,0.00034813,2]
[388084913,1759011038405,-952.0,0.00034902,2]
[388084914,1759011038416,-500.0,0.00034902,2]
[388084915,1759011038426,-586.5092015,0.00034971,30]
[388084916,1759011038436,-318.3019709,0.00034971,30]
[388084917,1759011038447,-189.1492399,0.00035108,30]
[388084918,1759011038457,-1171.5990744,0.00035108,30]
[388084919,1759011038467,-162.3399399,0.00035108,30]
[388084920,1759011038477,-296.9209673,0.00035108,30]
[388084921,1759011038486,-586.5092015,0.00035108,30]
[388084922,1759011038496,-371.8428189,0.00035164,2]
[388084924,1759011038506,-233.76631357,0.00035232,2]
[388084925,1759011038515,-390.611828,0.00035245,30]
[388084927,1759011038526,-390.611828,0.00035245,30]
[388084929,1759011038536,-893.5501623,0.00035245,30]
[388084932,1759011038546,-8633.5212987,0.00035264,2]
[388084934,1759011038556,-18267.3390942,0.00035264,2]
[388084936,1759011038566,-13023.83916,0.00035264,2]
[388084937,1759011038576,-1309.57056478,0.00035333,2]
[388084939,1759011038586,-3452.99228964,0.00035333,2]
[388084942,1759011038596,-5548.12305922,0.00035396,3]
[388084944,1759011038606,-44384.9844738,0.00035406,3]
[388084945,1759011038617,-189.3309625,0.00035406,3]
[388084948,1759011038627,-367.61,0.00035406,3]
[388084950,1759011038638,-183.8,0.00035406,3]
[388084951,1759011038648,-551.45,0.00035406,3]
[388084953,1759011038659,-5188.10700531,0.00035416,3]
[388084956,1759011038671,-97022.90276666,0.00035416,2]
[388084959,1759011038697,-160142.33167719,0.00035416,2]
[388084967,1759011038771,-33526.90787973,0.00035416,2]
[388084969,1759011038783,-79307.85767642,0.00035416,2]
[388084972,1759011038795,-162.62464521,0.00035433,2]
[388084974,1759011038805,-630.644,0.00035433,2]
[388084976,1759011038816,-1897.939,0.00035433,2]
[388084978,1759011038826,-189.3309625,0.00035476,2]
[388084980,1759011038836,-151.0,0.00035506,3]
[388084982,1759011038847,-158.14283334,0.00035506,3]
[388084984,1759011038856,-151.0,0.00035506,3]
[388084986,1759011038871,-151.18199785,0.00035506,2]
[388084988,1759011038882,-151.0,0.00035506,3]
[388084990,1759011038893,-151.0,0.00035506,3]
[388084992,1759011038903,-151.0,0.00035506,3]
[388084994,1759011038915,-500.0,0.00035506,3]
[388084996,1759011038925,-500.0,0.00035506,3]
[388084997,1759011038934,-500.0,0.00035506,3]
[388084998,1759011038945,-151.0,0.00035506,3]
[388084999,1759011038955,-151.0,0.00035506,3]
[388085001,1759011038964,-151.0,0.00035506,3]
[388085003,1759011038974,-1000.0,0.00035515,2]
[388085005,1759011038984,-1309.57056475,0.00035516,2]
[388085006,1759011038993,-3387.53164299,0.00035526,2]
[388085007,1759011039005,-952.0,0.0003555,7]
[388085008,1759011039015,-5548.12305922,0.00035596,3]
[388085009,1759011039025,-151.0,0.00035596,3]
[388085010,1759011039035,-151.0,0.00035596,3]
[388085011,1759011039044,-151.0,0.00035596,3]
[388085012,1759011039055,-151.0,0.00035596,3]
[388085013,1759011039065,-500.0,0.00035596,3]
[388085014,1759011039075,-151.0,0.00035596,3]
[388085015,1759011039084,-151.0,0.00035596,3]
[388085016,1759011039094,-151.0,0.00035596,3]
[388085017,1759011039104,-151.30661811,0.00035596,3]
[388085018,1759011039114,-152.22551564,0.00035596,3]
[388085019,1759011039125,-151.0,0.00035596,3]
[388085020,1759011039135,-151.0,0.000356,10]
[388085021,1759011039145,-151.0,0.000356,19]
[388085022,1759011039155,-151.0,0.000356,10]
[388085023,1759011039165,-151.0,0.000356,11]
[388085025,1759011039175,-151.0,0.000356,13]
[388085026,1759011039185,-151.0,0.000356,14]
[388085027,1759011039196,-151.0,0.000356,12]
[388085028,1759011039206,-160.0,0.000356,2]
[388085029,1759011039215,-189.3309625,0.00035606,3]
[388085030,1759011039225,-265.0,0.0003561,7]
[388085031,1759011039234,-155.0,0.00035615,2]
[388085032,1759011039244,-500.0,0.00035615,9]
[388085033,1759011039254,-500.0,0.00035615,9]
[388085034,1759011039265,-500.0,0.00035615,9]
[388085035,1759011039274,-500.0,0.00035615,9]
[388085036,1759011039284,-500.0,0.00035615,9]
[388085037,1759011039294,-500.0,0.00035615,9]
[388085038,1759011039303,-159.50572267,0.00035615,9]
[388085039,1759011039313,-189.7893413,0.00035616,9]
[388085040,1759011039322,-865.2,0.00035616,9]
[388085041,1759011039332,-490.02124937,0.00035616,9]
[388085042,1759011039342,-480.0,0.00035616,9]
[388085043,1759011039351,-480.0,0.00035616,9]
[388085044,1759011039362,-480.0,0.00035616,9]
[388085045,1759011039373,-480.0,0.00035616,9]
[388085046,1759011039383,-480.0,0.00035616,9]
[388085047,1759011039392,-763.26,0.00035616,9]
[388085048,1759011039401,-480.0,0.00035616,9]
[388085049,1759011039411,-480.0,0.00035616,9]
[388085050,1759011039420,-480.0,0.00035616,9]
[388085052,1759011039430,-189.3309625,0.00035616,7]
[388085054,1759011039440,-784.5,0.00035616,9]
[388085055,1759011039449,-480.0,0.00035616,9]
[388085056,1759011039460,-478.0,0.00035616,9]
[388085057,1759011039469,-480.0,0.00035616,9]
[388085058,1759011039478,-155.40308475,0.00035616,9]
[388085059,1759011039487,-978.15,0.00035616,9]
[388085060,1759011039497,-480.0,0.00035616,9]
[388085061,1759011039517,-480.0,0.00035616,9]
[388085062,1759011039527,-480.0,0.00035616,9]
[388085063,1759011039536,-480.0,0.00035616,9]
[388085064,1759011039547,-208.05503927,0.00035616,9]
[388085065,1759011039556,-484.74404921,0.00035616,9]
[388085066,1759011039864,-361.79595079,0.00035616,9]
[388085067,1759011039874,-480.0,0.00035616,9]
[388085068,1759011039883,-480.0,0.00035616,9]
[388085069,1759011039893,-480.0,0.00035616,9]
[388085070,1759011039903,-315.73502034,0.00035616,9]
[388085071,1759011039912,-597.3,0.00035616,9]
[388085072,1759011039922,-480.0,0.00035616,9]
[388085073,1759011039932,-480.0,0.00035616,9]
[388085074,1759011039941,-480.0,0.00035616,9]
[388085075,1759011039951,-480.0,0.00035616,9]
[388085076,1759011039960,-606.35946517,0.00035616,9]
[388085077,1759011039970,-480.0,0.00035616,9]
[388085078,1759011039979,-480.0,0.00035616,9]
[388085079,1759011039988,-480.0,0.00035616,9]
[388085080,1759011039997,-480.0,0.00035616,9]
[388085081,1759011040007,-480.0,0.00035616,9]
[388085082,1759011040017,-480.0,0.00035616,9]
[388085083,1759011040026,-480.0,0.00035616,9]
[388085084,1759011040036,-480.0,0.00035616,9]
[388085085,1759011040046,-480.0,0.00035616,9]
[388085086,1759011040055,-480.0,0.00035616,9]
[388085087,1759011040065,-480.0,0.00035616,9]
[388085088,1759011040075,-480.0,0.00035616,9]
[388085089,1759011040086,-480.0,0.00035616,9]
[388085090,1759011040095,-480.0,0.00035616,9]
[388085091,1759011040104,-480.0,0.00035616,9]
[388085092,1759011040114,-749.4,0.00035616,9]
[388085093,1759011040123,-480.0,0.00035616,9]
[388085094,1759011040132,-480.0,0.00035616,9]
[388085095,1759011040142,-480.0,0.00035616,9]
[388085096,1759011040348,-719.94,0.00035616,9]
[388085097,1759011040358,-480.0,0.00035616,9]
[388085098,1759011040369,-480.0,0.00035616,9]
[388085099,1759011040379,-480.0,0.00035616,9]
[388085100,1759011040388,-480.0,0.00035616,9]
[388085101,1759011040398,-480.0,0.00035616,9]
[388085102,1759011040408,-480.0,0.00035616,9]
[388085103,1759011040417,-234.74289532,0.00035616,9]
[388085104,1759011040434,-488.35710468,0.00035616,9]
[388085105,1759011040443,-596.36,0.00035616,9]
[388085106,1759011040453,-480.0,0.00035616,9]
[388085107,1759011040463,-437.0203017,0.00035616,9]
[388085108,1759011040473,-480.0,0.00035616,9]
[388085109,1759011040483,-480.0,0.00035616,7]
[388085110,1759011040493,-480.0,0.00035616,9]
[388085111,1759011040502,-480.0,0.00035616,9]
[388085112,1759011040512,-480.0,0.00035616,9]
[388085113,1759011040522,-480.0,0.00035616,9]
[388085114,1759011040532,-480.0,0.00035616,9]
[388085115,1759011040542,-480.0,0.00035616,9]
[388085117,1759011040552,-480.0,0.00035616,9]
[388085118,1759011040561,-151.0,0.00035616,7]
[388085119,1759011040570,-151.0,0.00035616,7]
[388085120,1759011040580,-151.0,0.00035616,7]
[388085121,1759011040589,-480.0,0.00035616,9]
[388085122,1759011040598,-151.0,0.00035616,7]
[388085123,1759011040607,-151.0,0.00035616,7]
[388085124,1759011040617,-480.0,0.00035616,9]
[388085126,1759011040627,-151.0,0.00035616,7]
[388085128,1759011040635,-151.0,0.00035616,7]
[388085129,1759011040645,-151.0,0.00035616,7]
[388085130,1759011040654,-480.0,0.00035616,9]
[388085131,1759011040663,-151.0,0.00035616,7]
[388085132,1759011040672,-151.0,0.00035616,7]
[388085133,1759011040681,-151.0,0.00035616,7]
[388085134,1759011040691,-151.0,0.00035616,7]
[388085135,1759011040700,-151.0,0.00035616,7]
[388085136,1759011040709,-222.879412,0.00035616,7]
[388085137,1759011040719,-844.42,0.00035616,9]
[388085138,1759011040728,-480.0,0.00035616,9]
[388085139,1759011040737,-826.16,0.00035616,9]
[388085140,1759011040746,-480.0,0.00035616,9]
[388085141,1759011040756,-990.33,0.00035616,9]
[388085142,1759011040765,-480.0,0.00035616,9]
[388085143,1759011040774,-480.0,0.00035616,9]
[388085144,1759011040783,-480.0,0.00035616,9]
[388085145,1759011040792,-480.0,0.00035616,9]
[388085146,1759011040801,-602.63797125,0.00035616,9]
[388085147,1759011040811,-480.0,0.00035616,9]
[388085148,1759011040819,-480.0,0.00035616,9]
[388085149,1759011040828,-480.0,0.00035616,9]
[388085150,1759011040838,-480.0,0.00035616,9]
[388085151,1759011040848,-480.0,0.00035616,9]
[388085152,1759011040857,-480.0,0.00035616,9]
[388085153,1759011040866,-480.0,0.00035616,9]
[388085154,1759011040876,-480.0,0.00035616,9]
[388085155,1759011040886,-733.34,0.00035616,9]
[388085156,1759011040896,-480.0,0.00035616,9]
[388085157,1759011040905,-151.0,0.00035616,7]
[388085158,1759011040915,-151.0,0.00035616,7]
[388085159,1759011040923,-151.0,0.00035616,7]
[388085160,1759011040933,-213.92,0.00035616,7]
[388085161,1759011040943,-480.0,0.00035616,9]
[388085162,1759011040952,-480.0,0.00035616,9]
[388085163,1759011040962,-480.89814689,0.00035616,9]
[388085164,1759011040971,-480.0,0.00035616,9]
[388085165,1759011040980,-480.0,0.00035616,9]
[388085166,1759011040989,-153.861515,0.00035616,7]
[388085167,1759011040998,-480.0,0.00035616,9]
[388085168,1759011041007,-151.0,0.00035616,7]
[388085169,1759011041016,-151.0,0.00035616,7]
[388085170,1759011041025,-151.0,0.00035616,7]
[388085171,1759011041035,-154.678514,0.00035616,7]
[388085172,1759011041044,-151.0,0.00035616,7]
[388085173,1759011041053,-151.0,0.00035616,7]
[388085174,1759011041063,-85.16787426,0.00035616,7]
[388085175,1759011041081,-65.83212574,0.00035616,7]
[388085176,1759011041090,-151.0,0.00035616,7]
[388085177,1759011041099,-151.0,0.00035616,7]
[388085178,1759011041108,-87.3503697,0.00035616,7]
[388085179,1759011041120,-63.6496303,0.00035616,7]
[388085180,1759011041130,-151.000001,0.00035616,7]
[388085181,1759011041139,-480.0,0.00035616,9]
[388085182,1759011041148,-151.0,0.00035616,7]
[388085183,1759011041158,-500.0,0.00035616,9]
[388085184,1759011041167,-480.0,0.00035616,9]
[388085185,1759011041176,-143.22358985,0.00035616,9]
[388085186,1759011041187,-336.77641015,0.00035616,9]
[388085187,1759011041197,-222.72507437,0.00035616,9]
[388085188,1759011041211,-257.27492563,0.00035616,9]
[388085189,1759011041220,-480.0,0.00035616,9]
[388085190,1759011041230,-480.0,0.00035616,9]
[388085191,1759011041239,-480.0,0.00035616,9]
[388085192,1759011041248,-480.0,0.00035616,9]
[388085193,1759011041257,-430.37835781,0.00035616,9]
[388085194,1759011041266,-480.0,0.00035616,9]
[388085195,1759011041275,-480.0,0.00035616,9]
[388085196,1759011041285,-480.0,0.00035616,9]
[388085197,1759011041294,-480.0,0.00035616,9]
[388085198,1759011041303,-480.0,0.00035616,9]
[388085199,1759011041312,-480.0,0.00035616,9]
[388085200,1759011041322,-480.0,0.00035616,9]
[388085201,1759011041331,-481.00795552,0.00035616,9]
[388085202,1759011041341,-639.66,0.00035616,9]
[388085203,1759011041350,-919.89,0.00035616,9]
[388085204,1759011041359,-480.0,0.00035616,9]
[388085205,1759011041370,-462.00087823,0.00035616,9]
[388085206,1759011041379,-480.0,0.00035616,9]
[388085207,1759011041389,-480.0,0.00035616,9]
[388085208,1759011041398,-151.0,0.00035616,7]
[388085209,1759011041407,-151.0,0.00035616,7]
[388085210,1759011041418,-151.0,0.00035616,7]
[388085211,1759011041430,-796.61,0.00035616,9]
[388085212,1759011041439,-480.0,0.00035616,9]
[388085213,1759011041448,-151.0,0.00035616,7]
[388085214,1759011041457,-151.0,0.00035616,7]
[388085215,1759011041466,-151.0,0.00035616,7]
[388085216,1759011041476,-151.0,0.00035616,7]
[388085217,1759011041485,-151.0,0.00035616,7]
[388085218,1759011041495,-480.0,0.00035616,9]
[388085219,1759011041504,-181.838916,0.00035616,7]
[388085220,1759011041514,-556.49,0.00035616,9]
[388085221,1759011041523,-568.68,0.00035616,9]
[388085222,1759011041532,-480.0,0.00035616,9]
[388085223,1759011041542,-480.0,0.00035616,9]
[388085224,1759011041551,-151.0,0.00035616,7]
[388085225,1759011041560,-151.0,0.00035616,7]
[388085226,1759011041570,-151.0,0.00035616,7]
[388085227,1759011041579,-151.0,0.00035616,7]
[388085228,1759011041589,-151.0,0.00035616,7]
[388085229,1759011041599,-151.0,0.00035616,7]
[388085230,1759011041608,-151.0,0.00035616,7]
[388085231,1759011041619,-151.0,0.00035616,7]
[388085232,1759011041628,-151.0,0.00035616,7]
[388085233,1759011041638,-480.0,0.00035616,9]
[388085234,1759011041647,-151.0,0.00035616,7]
[388085235,1759011041657,-2.74623823,0.00035616,7]
[388085236,1759011041672,-148.25376177,0.00035616,7]
[388085237,1759011041681,-151.0,0.00035616,7]
[388085238,1759011041690,-151.0,0.00035616,7]
[388085239,1759011041700,-243.177624,0.00035616,7]
[388085240,1759011041709,-480.0,0.00035616,9]
[388085241,1759011041718,-151.0,0.00035616,7]
[388085242,1759011041728,-480.0,0.00035616,9]
[388085243,1759011041737,-151.0,0.00035616,7]
[388085244,1759011041746,-151.0,0.00035616,7]
[388085245,1759011041755,-151.0,0.00035616,7]
[388085246,1759011041764,-151.0,0.00035616,7]
[388085247,1759011041774,-281.927366,0.00035616,7]
[388085248,1759011041783,-480.0,0.00035616,9]
[388085249,1759011041792,-420.1532824,0.00035616,9]
[388085250,1759011041801,-480.0,0.00035616,9]
[388085251,1759011041810,-480.0,0.00035616,9]
[388085252,1759011041819,-929.29,0.00035616,9]
[388085253,1759011041828,-480.0,0.00035616,9]
[388085254,1759011041837,-926.42,0.00035616,9]
[388085255,1759011041846,-151.0,0.00035616,7]
[388085256,1759011041855,-286.367429,0.00035616,7]
[388085257,1759011041864,-151.0,0.00035616,7]
[388085258,1759011041874,-480.0,0.00035616,9]
[388085259,1759011041883,-480.0,0.00035616,9]
[388085260,1759011041892,-151.0,0.00035616,7]
[388085261,1759011041901,-151.0,0.00035616,7]
[388085262,1759011041910,-151.0,0.00035616,7]
[388085263,1759011041919,-152.675005,0.00035616,7]
[388085264,1759011041930,-151.0,0.00035616,7]
[388085265,1759011041939,-151.0,0.00035616,7]
[388085266,1759011041948,-153.07,0.00035616,7]
[388085267,1759011041958,-636.87,0.00035616,9]
[388085268,1759011041967,-240.6902799,0.00035616,9]
[388085269,1759011041976,-480.0,0.00035616,9]
[388085270,1759011041985,-480.0,0.00035616,9]
[388085271,1759011041995,-480.0,0.00035616,9]
[388085272,1759011042005,-480.0,0.00035616,9]
[388085273,1759011042014,-480.0,0.00035616,9]
[388085274,1759011042023,-151.0,0.00035616,7]
[388085275,1759011042033,-151.0,0.00035616,7]
[388085276,1759011042042,-152.946929,0.00035616,7]
[388085277,1759011042052,-444.53615969,0.00035616,9]
[388085278,1759011042068,-35.46384031,0.00035616,9]
[388085279,1759011042078,-151.0,0.00035616,7]
[388085280,1759011042088,-151.0,0.00035616,7]